fUST/lending_fUST_20250704
["ID","MTS","AMOUNT","RATE_DAILY","PERIOD"]
[369569089,1751623832301,-460.0,0.00016438,2]
[369569090,1751623832311,-460.0,0.00016438,2]
[369569091,1751623832320,-460.0,0.00016438,2]
[369569092,1751623832329,-361.34733992,0.00016438,2]
[369569093,1751623832338,-460.0,0.00016438,2]
[369569094,1751623832347,-460.0,0.00016438,2]
[369569095,1751623832357,-391.41712358,0.00016438,2]
[369569096,1751623832366,-460.0,0.00016438,2]
[369569097,1751623832376,-460.0,0.00016438,2]
[369569098,1751623832386,-460.0,0.00016438,2]
[369569099,1751623832395,-460.0,0.00016438,2]
[369569100,1751623832405,-460.0,0.00016438,2]
[369569101,1751623832414,-460.0,0.00016438,2]
[369569102,1751623832423,-460.0,0.00016438,2]
[369569103,1751623832433,-460.0,0.00016438,2]
[369569104,1751623832442,-460.0,0.00016438,2]
[369569105,1751623832451,-460.0,0.00016438,2]
[369569106,1751623832460,-212.83207683,0.00016438,2]
[369569114,1751623837904,-247.16792317,0.00016438,2]
[369569115,1751623837915,-460.0,0.00016438,2]
[369569116,1751623837924,-460.0,0.00016438,2]
[369569117,1751623837933,-460.0,0.00016438,2]
[369569118,1751623837943,-460.0,0.00016438,2]
[369569119,1751623837953,-6.45764435,0.00016438,2]
[369569176,1751623840214,-500.0,0.00015615,2]
[369569178,1751623840223,-500.0,0.00015615,2]
[369569180,1751623840233,-1004.0684732,0.00015689,2]
[369569182,1751623840242,-265.35164073,0.00016438,2]
[369569221,1751623840590,-0.03384022,0.00016438,2]
[369569241,1751623843101,-188.1568747,0.00016438,2]
[369569242,1751623843113,-233.68284651,0.00016438,2]
[369569243,1751623843125,-226.31715349,0.00016438,2]
[369569244,1751623843135,-635.97,0.00016438,2]
[369569245,1751623843144,-55.67941699,0.00016438,2]
[369569246,1751623843155,-658.61058301,0.00016438,2]
[369569247,1751623843165,-460.0,0.00016438,2]
[369569248,1751623843174,-460.0,0.00016438,2]
[369569249,1751623843184,-337.99309445,0.00016438,2]
[369569264,1751624031291,5000.0,0.000148,2]
[369569265,1751624047753,5000.0,0.000148,2]
[369569266,1751624062831,393.54032381,0.000148,2]
[369569267,1751624062854,4606.45967619,0.000148,2]
[369569269,1751624078098,5000.0,0.000148,2]
[369569270,1751624094346,5000.0,0.000148,2]
[369569271,1751624111050,5000.0,0.000148,2]
[369569272,1751624126841,393.54032381,0.000148,2]
[369569273,1751624126864,4606.45967619,0.000148,2]
[369569274,1751624142105,5000.0,0.000148,2]
[369569275,1751624158522,5000.0,0.000148,2]
[369569276,1751624174588,5000.0,0.000148,2]
[369569277,1751624190343,393.54032381,0.000148,2]
[369569278,1751624190366,4606.45967619,0.000148,2]
[369569279,1751624195259,15393.54032381,0.0001472,2]
[369569280,1751624195281,20000.0,0.0001472,2]
[369569281,1751624195304,11248.25586299,0.0001472,2]
[369569282,1751624204817,165.70423838,0.00014379,2]
[369569283,1751624206572,5000.0,0.000148,2]
[369569284,1751624227720,3586.03989863,0.000148,2]
[369569285,1751624227743,1413.96010137,0.000148,2]
[369569286,1751624242869,5000.0,0.000148,2]
[369569287,1751624258149,5000.0,0.000148,2]
[369569288,1751624274530,5000.0,0.000148,2]
[369569289,1751624292213,3586.03989863,0.000148,2]
[369569290,1751624292236,1413.96010137,0.000148,2]
[369569291,1751624307693,5000.0,0.000148,2]
[369569292,1751624323393,5000.0,0.000148,2]
[369569293,1751624327520,205.814376,0.00014042,2]
[369569294,1751624327726,205.814376,0.00014042,120]
[369569296,1751624339121,5000.0,0.000148,2]
[369569297,1751624355561,3380.22552263,0.000148,2]
[369569298,1751624355584,1619.77447737,0.000148,2]
[369569299,1751624370847,5000.0,0.000148,2]
[369569300,1751624388323,5000.0,0.000148,2]
[369569301,1751624404080,5000.0,0.000148,2]
[369569302,1751624419893,3380.22552263,0.000148,2]
[369569303,1751624419919,1619.77447737,0.000148,2]
[369569304,1751624421978,572.168824,0.00013699,2]
[369569306,1751624436289,5000.0,0.000148,2]
[369569307,1751624447579,494.8943881,0.00013916,2]
[369569308,1751624452167,5000.0,0.000148,2]
[369569309,1751624468639,5000.0,0.000148,2]
[369569310,1751624484391,2313.16231053,0.000148,2]
[369569311,1751624484414,1799.80075229,0.000148,2]
[369569312,1751624560098,5000.0,0.000148,2]
[369569313,1751624575545,1237.78027289,0.000148,2]
[369569314,1751624576713,613.95846031,0.00014798,2]
[369569315,1751624579684,211.1938299,0.00013888,2]
[369569316,1751624625599,5000.0,0.000148,2]
[369569317,1751624642359,449.77219926,0.000148,2]
[369569319,1751624756947,440.18232412,0.00014704,2]
[369569321,1751624768541,5247.31216123,0.00013897,2]
[369569322,1751624768571,4752.68783877,0.00013897,2]
[369569325,1751624851209,-288.8281388,0.00014804,2]
[369569326,1751624857241,288.8281388,0.000148,2]
[369569327,1751624895980,14958.48402243,0.00013844,2]
[369569328,1751624896004,20000.0,0.00013844,2]
[369569329,1751624896027,13691.91486067,0.00013844,2]
[369569342,1751624924724,1374.003923,0.00013844,2]
[369569344,1751624925300,336.51106367,0.00024542,120]
[369569355,1751624933302,826.65491548,0.0001611,6]
[369569373,1751625032138,-11.1718612,0.00014804,2]
[369569374,1751625032148,-1200.0,0.00014822,2]
[369569375,1751625032158,-471.0,0.00014823,2]
[369569376,1751625032168,-260.0,0.00014823,2]
[369569377,1751625032178,-300.0,0.00014823,2]
[369569378,1751625032187,-270.0,0.00014823,2]
[369569379,1751625032198,-300.0,0.00014823,2]
[369569380,1751625032207,-300.0,0.00014823,2]
[369569381,1751625032217,-3266.66507197,0.00014824,2]
[369569382,1751625032228,-2396.00307459,0.00014824,2]
[369569383,1751625032241,-13049.50985193,0.00014824,2]
[369569386,1751625032256,-6187.82200151,0.00014824,2]
[369569388,1751625032265,-508.68933873,0.00014898,2]
[369569389,1751625032275,-500.0,0.00014898,2]
[369569391,1751625032285,-500.0,0.00014898,2]
[369569392,1751625032294,-500.0,0.00014898,2]
[369569393,1751625032304,-500.0,0.00014898,2]
[369569394,1751625032313,-500.0,0.00014898,2]
[369569395,1751625032323,-500.0,0.00014898,2]
[369569396,1751625032332,-294.1371161,0.00014898,2]
[369569397,1751625032341,-304.59088819,0.00014898,2]
[369569398,1751625032351,-201.87749838,0.00014899,2]
[369569399,1751625032360,-3458.07453722,0.00014899,2]
[369569400,1751625032372,-19894.92326931,0.00014899,2]
[369569401,1751625033186,591.79279061,0.00014798,2]
[369569406,1751625038180,-2585.13300081,0.00014899,2]
[369569411,1751625040420,-1421.1804627,0.00014899,2]
[369569724,1751625043294,-2462.45343804,0.00014899,2]
[369569730,1751625043304,-1398.3712459,0.00014932,2]
[369569733,1751625043314,-160.0,0.00015,2]
[369569736,1751625043323,-165.031206,0.00015258,2]
[369569739,1751625043332,-165.031206,0.00015283,2]
[369569742,1751625043341,-374.0,0.000153,2]
[369569745,1751625043351,-165.031206,0.00015309,2]
[369569748,1751625043360,-165.031206,0.00015334,2]
[369569751,1751625043369,-500.0,0.00015616,2]
[369569754,1751625043378,-170.4774965,0.00015648,2]
[369569757,1751625043387,-207.4,0.00015743,2]
[369569760,1751625043396,-276.17373063,0.00015786,2]
[369569763,1751625043406,-591.79279054,0.00016176,2]
[369569766,1751625043415,-9521.95247402,0.000162,2]
[369569769,1751625043424,-9521.95247374,0.0001621,2]
[369569771,1751625043433,-420.0,0.00016226,2]
[369569774,1751625043446,-1980.27554383,0.00016275,2]
[369569778,1751625043456,-1680.0,0.00016304,2]
[369569781,1751625043466,-439.97846192,0.00016338,2]
[369569784,1751625043476,-20000.00000001,0.00016338,2]
[369569785,1751625043486,-742.73,0.00016411,2]
[369569790,1751625043496,-178.09307395,0.00016411,2]
[369569793,1751625043505,-495.9,0.00016428,3]
[369569795,1751625043516,-251.67032491,0.00016437,2]
[369569797,1751625043525,-216.79610478,0.00016437,2]
[369569799,1751625043534,-460.0,0.00016438,2]
[369569801,1751625043544,-460.0,0.00016438,2]
[369569803,1751625043554,-460.0,0.00016438,2]
[369569805,1751625043563,-460.0,0.00016438,2]
[369569807,1751625043572,-460.0,0.00016438,2]
[369569809,1751625043582,-550.21841317,0.00016438,2]
[369569811,1751625043591,-460.0,0.00016438,2]
[369569813,1751625043600,-460.0,0.00016438,2]
[369569815,1751625043609,-580.10412807,0.00016438,2]
[369569817,1751625043618,-460.0,0.00016438,2]
[369569819,1751625043627,-463.82084155,0.00016438,2]
[369569821,1751625043637,-460.0,0.00016438,2]
[369569823,1751625043647,-462.16125666,0.00016438,2]
[369569825,1751625043656,-460.0,0.00016438,2]
[369569827,1751625043665,-460.0,0.00016438,2]
[369569829,1751625043674,-293.31805144,0.00016438,2]
[369569831,1751625043684,-460.0,0.00016438,2]
[369569833,1751625043693,-460.0,0.00016438,2]
[369569835,1751625043702,-460.0,0.00016438,2]
[369569837,1751625043711,-460.0,0.00016438,2]
[369569839,1751625043721,-460.0,0.00016438,2]
[369569841,1751625043730,-460.0,0.00016438,2]
[369569843,1751625043740,-458.83900975,0.00016438,2]
[369569845,1751625043748,-460.0,0.00016438,2]
[369569847,1751625043758,-460.0,0.00016438,2]
[369569849,1751625043767,-460.0,0.00016438,2]
[369569851,1751625043777,-460.0,0.00016438,2]
[369569853,1751625043785,-460.0,0.00016438,2]
[369569855,1751625043795,-213.49833596,0.00016438,2]
[369569857,1751625043803,-460.0,0.00016438,2]
[369569859,1751625043813,-460.0,0.00016438,2]
[369569861,1751625043822,-460.0,0.00016438,2]
[369569863,1751625043831,-460.0,0.00016438,2]
[369569865,1751625043840,-460.0,0.00016438,2]
[369569867,1751625043849,-460.0,0.00016438,2]
[369569869,1751625043858,-460.0,0.00016438,2]
[369569871,1751625043867,-460.0,0.00016438,2]
[369569873,1751625043876,-500.0,0.00016438,2]
[369569875,1751625043885,-500.0,0.00016438,2]
[369569877,1751625043894,-500.0,0.00016438,2]
[369569879,1751625043903,-551.54776708,0.00016438,2]
[369569881,1751625043913,-464.73919868,0.00016438,2]
[369569883,1751625043922,-460.0,0.00016438,2]
[369569885,1751625043931,-460.0,0.00016438,2]
[369569887,1751625043940,-472.14063789,0.00016438,2]
[369569889,1751625043949,-460.0,0.00016438,2]
[369569891,1751625043959,-460.0,0.00016438,2]
[369569893,1751625043968,-460.0,0.00016438,2]
[369569895,1751625043978,-460.0,0.00016438,2]
[369569897,1751625043987,-460.0,0.00016438,2]
[369569899,1751625043997,-193.98841063,0.00016438,2]
[369569901,1751625044006,-463.45776796,0.00016438,2]
[369569903,1751625044015,-460.0,0.00016438,2]
[369569905,1751625044024,-460.0,0.00016438,2]
[369569907,1751625044034,-460.0,0.00016438,2]
[369569909,1751625044043,-460.0,0.00016438,2]
[369569911,1751625044053,-460.0,0.00016438,2]
[369569913,1751625044062,-509.20195955,0.00016438,2]
[369569915,1751625044071,-460.0,0.00016438,2]
[369569917,1751625044081,-362.67881058,0.00016438,2]
[369569919,1751625044090,-460.0,0.00016438,2]
[369569921,1751625044099,-609.47,0.00016438,2]
[369569923,1751625044109,-460.0,0.00016438,2]
[369569925,1751625044118,-460.0,0.00016438,2]
[369569927,1751625044127,-325.49976988,0.00016438,2]
[369569929,1751625044136,-460.0,0.00016438,2]
[369569931,1751625044146,-460.0,0.00016438,2]
[369569933,1751625044155,-711.3,0.00016438,2]
[369569935,1751625044165,-460.0,0.00016438,2]
[369569937,1751625044174,-460.0,0.00016438,2]
[369569939,1751625044183,-460.0,0.00016438,2]
[369569941,1751625044193,-460.0,0.00016438,2]
[369569943,1751625044202,-878.14,0.00016438,2]
[369569945,1751625044211,-738.68,0.00016438,2]
[369569947,1751625044221,-460.0,0.00016438,2]
[369569949,1751625044230,-460.0,0.00016438,2]
[369569951,1751625044240,-151.0,0.00016438,2]
[369569953,1751625044249,-460.0,0.00016438,2]
[369569955,1751625044260,-460.0,0.00016438,2]
[369569957,1751625044269,-443.37157173,0.00016438,2]
[369570177,1751625046771,-16.62842827,0.00016438,2]
[369570179,1751625046780,-460.0,0.00016438,2]
[369570181,1751625046789,-460.0,0.00016438,2]
[369570183,1751625046799,-460.0,0.00016438,2]
[369570185,1751625046808,-460.0,0.00016438,2]
[369570187,1751625046817,-460.0,0.00016438,2]
[369570189,1751625046826,-460.0,0.00016438,2]
[369570191,1751625046836,-151.0,0.00016438,2]
[369570193,1751625046847,-460.0,0.00016438,2]
[369570196,1751625046857,-460.0,0.00016438,2]
[369570198,1751625046869,-460.0,0.00016438,2]
[369570200,1751625046879,-460.0,0.00016438,2]
[369570202,1751625046888,-425.12734514,0.00016438,2]
[369570204,1751625046897,-460.0,0.00016438,2]
[369570206,1751625046906,-460.0,0.00016438,2]
[369570208,1751625046915,-151.0,0.00016438,2]
[369570210,1751625046925,-460.0,0.00016438,2]
[369570212,1751625046934,-4792.27,0.00016438,2]
[369570214,1751625046944,-500.0,0.00016438,2]
[369570216,1751625046953,-460.0,0.00016438,2]
[369570218,1751625046963,-905.04,0.00016438,2]
[369570220,1751625046972,-60097.95,0.00016438,2]
[369570222,1751625046981,-671.08,0.00016438,2]
[369570224,1751625046990,-460.0,0.00016438,2]
[369570226,1751625046999,-1262.32,0.00016438,2]
[369570227,1751625047009,-460.0,0.00016438,2]
[369570230,1751625047019,-460.0,0.00016438,2]
[369570231,1751625047029,-742.62,0.00016438,2]
[369570233,1751625047037,-1960.49,0.00016438,2]
[369570235,1751625047046,-460.0,0.00016438,2]
[369570237,1751625047055,-1599.15,0.00016438,2]
[369570239,1751625047064,-1086.28,0.00016438,2]
[369570241,1751625047073,-460.0,0.00016438,2]
[369570243,1751625047082,-151.0,0.00016438,2]
[369570245,1751625047092,-483.6,0.00016438,2]
[369570247,1751625047101,-1664.44,0.00016438,2]
[369570249,1751625047111,-460.0,0.00016438,2]
[369570251,1751625047121,-3272.53,0.00016438,2]
[369570253,1751625047131,-151.0,0.00016438,2]
[369570255,1751625047140,-151.0,0.00016438,2]
[369570257,1751625047149,-846.06,0.00016438,2]
[369570258,1751625047158,-151.0,0.00016438,2]
[369570259,1751625047167,-2527.35,0.00016438,2]
[369570260,1751625047177,-460.0,0.00016438,2]
[369570261,1751625047186,-151.0,0.00016438,2]
[369570262,1751625047196,-1122.91,0.00016438,2]
[369570263,1751625047206,-1628.47,0.00016438,2]
[369570264,1751625047215,-819.81,0.00016438,2]
[369570265,1751625047224,-460.0,0.00016438,2]
[369570266,1751625047233,-916.74,0.00016438,2]
[369570267,1751625047243,-460.0,0.00016438,2]
[369570268,1751625047252,-460.0,0.00016438,2]
[369570269,1751625047261,-460.0,0.00016438,2]
[369570270,1751625047270,-460.0,0.00016438,2]
[369570271,1751625047279,-959.2,0.00016438,2]
[369570272,1751625047288,-460.0,0.00016438,2]
[369570273,1751625047297,-842.35,0.00016438,2]
[369570274,1751625047306,-2004.54,0.00016438,2]
[369570275,1751625047315,-460.0,0.00016438,2]
[369570276,1751625047324,-648.33,0.00016438,2]
[369570277,1751625047333,-460.0,0.00016438,2]
[369570278,1751625047341,-601.04,0.00016438,2]
[369570279,1751625047350,-470.67,0.00016438,2]
[369570280,1751625047359,-460.0,0.00016438,2]
[369570281,1751625047368,-577.38,0.00016438,2]
[369570282,1751625047377,-1116.37,0.00016438,2]
[369570283,1751625047386,-460.0,0.00016438,2]
[369570284,1751625047396,-716.86,0.00016438,2]
[369570285,1751625047405,-460.0,0.00016438,2]
[369570286,1751625047413,-1299.54,0.00016438,2]
[369570287,1751625047423,-719.43,0.00016438,2]
[369570288,1751625047432,-460.0,0.00016438,2]
[369570289,1751625047443,-460.0,0.00016438,2]
[369570290,1751625047453,-460.0,0.00016438,2]
[369570291,1751625047462,-151.0,0.00016438,2]
[369570292,1751625047472,-460.0,0.00016438,2]
[369570294,1751625047482,-3123.4,0.00016438,2]
[369570296,1751625047492,-3336.36,0.00016438,2]
[369570298,1751625047501,-201.962506,0.00016438,2]
[369570300,1751625047510,-151.0,0.00016438,2]
[369570302,1751625047520,-319.2674481,0.00016438,2]
[369570304,1751625047529,-460.0,0.00016438,2]
[369570306,1751625047538,-3045.03,0.00016438,2]
[369570308,1751625047547,-922.06,0.00016438,2]
[369570310,1751625047557,-720.26,0.00016438,2]
[369570312,1751625047566,-4632.0,0.00016438,2]
[369570313,1751625047575,-460.0,0.00016438,2]
[369570315,1751625047585,-460.0,0.00016438,2]
[369570317,1751625047595,-817.29,0.00016438,2]
[369570319,1751625047604,-460.0,0.00016438,2]
[369570321,1751625047614,-720.07,0.00016438,2]
[369570323,1751625047623,-4767.42,0.00016438,2]
[369570325,1751625047632,-271.13809,0.00016438,2]
[369570326,1751625047641,-151.0,0.00016438,2]
[369570328,1751625047650,-705.46,0.00016438,2]
[369570330,1751625047659,-271.13809,0.00016438,2]
[369570332,1751625047668,-460.0,0.00016438,2]
[369570334,1751625047678,-727.04,0.00016438,2]
[369570336,1751625047687,-219.589331,0.00016438,2]
[369570338,1751625047697,-1559.61,0.00016438,2]
[369570340,1751625047707,-151.0,0.00016438,2]
[369570342,1751625047716,-460.0,0.00016438,2]
[369570344,1751625047725,-460.0,0.00016438,2]
[369570346,1751625047735,-460.0,0.00016438,2]
[369570348,1751625047747,-2062.45,0.00016438,2]
[369570350,1751625047756,-460.0,0.00016438,2]
[369570352,1751625047765,-715.78,0.00016438,2]
[369570354,1751625047775,-460.0,0.00016438,2]
[369570356,1751625047784,-810.44,0.00016438,2]
[369570358,1751625047793,-1768.19,0.00016438,2]
[369570360,1751625047802,-460.0,0.00016438,2]
[369570362,1751625047811,-460.0,0.00016438,2]
[369570364,1751625047820,-460.0,0.00016438,2]
[369570366,1751625047830,-2413.18,0.00016438,2]
[369570368,1751625047840,-293.32673143,0.00016438,2]
[369570370,1751625047849,-460.0,0.00016438,2]
[369570371,1751625047859,-475.7,0.00016438,2]
[369570373,1751625047868,-1012.88,0.00016438,2]
[369570375,1751625047878,-1054.19,0.00016438,2]
[369570377,1751625047887,-460.0,0.00016438,2]
[369570379,1751625047896,-474.03,0.00016438,2]
[369570381,1751625047906,-460.0,0.00016438,2]
[369570383,1751625047915,-954.69,0.00016438,2]
[369570385,1751625047925,-151.0,0.00016438,2]
[369570387,1751625047934,-460.0,0.00016438,2]
[369570389,1751625047943,-460.0,0.00016438,2]
[369570391,1751625047952,-151.0,0.00016438,2]
[369570393,1751625047961,-460.0,0.00016438,2]
[369570395,1751625047971,-968.65,0.00016438,2]
[369570397,1751625047980,-1481.66,0.00016438,2]
[369570399,1751625047991,-1069.65,0.00016438,2]
[369570401,1751625048000,-460.0,0.00016438,2]
[369570403,1751625048009,-460.0,0.00016438,2]
[369570405,1751625048018,-460.0,0.00016438,2]
[369570406,1751625048027,-604.06697694,0.00016438,2]
[369570408,1751625048036,-460.0,0.00016438,2]
[369570410,1751625048046,-460.0,0.00016438,2]
[369570412,1751625048055,-4648.64,0.00016438,2]
[369570414,1751625048064,-500.0,0.00016446,2]
[369570416,1751625048073,-439.97846192,0.00016499,2]
[369570418,1751625048082,-9521.95247374,0.00016521,2]
[369570420,1751625048091,-151.0,0.00016521,2]
[369570422,1751625048101,-151.40454334,0.0001661,2]
[369570424,1751625048110,-215.11129906,0.00016619,2]
[369570426,1751625048119,-160.0,0.00016619,2]
[369570428,1751625048129,-160.0,0.00016619,2]
[369570430,1751625048138,-213.97741257,0.00016619,2]
[369570432,1751625048148,-837.48520791,0.00016619,2]
[369570434,1751625048157,-12578.03337979,0.00016619,2]
[369570436,1751625048166,-230.40116161,0.00016619,2]
[369570437,1751625048175,-160.0,0.00016619,2]
[369570439,1751625048185,-847.91215827,0.00016619,2]
[369570441,1751625048194,-151.0,0.00016631,2]
[369570443,1751625048204,-439.97846192,0.0001666,2]
[369570445,1751625048213,-250.0,0.0001668,2]
[369570447,1751625048223,-640.0,0.000167,2]
[369570449,1751625048232,-210.33223515,0.00016712,2]
[369570451,1751625048242,-2580.98224676,0.00016712,2]
[369570453,1751625048252,-151.0,0.00016712,2]
[369570455,1751625048261,-151.0,0.00016712,2]
[369570457,1751625048271,-460.0,0.00016712,2]
[369570459,1751625048280,-151.0,0.00016712,2]
[369570461,1751625048289,-460.0,0.00016712,2]
[369570462,1751625048298,-151.0,0.00016712,2]
[369570464,1751625048308,-151.0,0.00016712,2]
[369570466,1751625048318,-151.0,0.00016712,2]
[369570468,1751625048328,-151.0,0.00016712,2]
[369570470,1751625048338,-151.384034,0.00016712,2]
[369570472,1751625048347,-460.0,0.00016712,2]
[369570474,1751625048357,-460.0,0.00016712,2]
[369570476,1751625048366,-460.0,0.00016712,2]
[369570478,1751625048376,-460.0,0.00016712,2]
[369570480,1751625048385,-460.0,0.00016712,2]
[369570482,1751625048396,-460.0,0.00016712,2]
[369570484,1751625048405,-460.0,0.00016712,2]
[369570486,1751625048415,-151.0,0.00016712,2]
[369570488,1751625048424,-151.0,0.00016712,2]
[369570490,1751625048434,-209.16395,0.00016712,2]
[369570492,1751625048446,-151.0,0.00016712,2]
[369570494,1751625048456,-460.0,0.00016712,2]
[369570496,1751625048465,-460.0,0.00016712,2]
[369570498,1751625048475,-460.0,0.00016712,2]
[369570500,1751625048485,-460.0,0.00016712,2]
[369570502,1751625048495,-460.0,0.00016712,2]
[369570503,1751625048506,-151.0,0.00016712,2]
[369570505,1751625048516,-151.0,0.00016712,2]
[369570507,1751625048526,-151.0,0.00016712,2]
[369570509,1751625048542,-151.0,0.00016712,2]
[369570511,1751625048552,-460.0,0.00016712,2]
[369570513,1751625048562,-460.0,0.00016712,2]
[369570515,1751625048571,-460.0,0.00016712,2]
[369570517,1751625048580,-460.0,0.00016712,2]
[369570519,1751625048590,-460.0,0.00016712,2]
[369570521,1751625048600,-460.0,0.00016712,2]
[369570523,1751625048609,-460.0,0.00016712,2]
[369570525,1751625048619,-460.0,0.00016712,2]
[369570527,1751625048628,-460.0,0.00016712,2]
[369570529,1751625048638,-151.0,0.00016712,2]
[369570531,1751625048647,-460.0,0.00016712,2]
[369570533,1751625048657,-460.0,0.00016712,2]
[369570535,1751625048666,-460.0,0.00016712,2]
[369570537,1751625048676,-460.0,0.00016712,2]
[369570539,1751625048686,-609.47,0.00016712,2]
[369570541,1751625048695,-460.0,0.00016712,2]
[369570543,1751625048705,-711.3,0.00016712,2]
[369570545,1751625048714,-555.27234271,0.00016712,2]
[369570547,1751625048724,-460.0,0.00016712,2]
[369570549,1751625048734,-460.0,0.00016712,2]
[369570551,1751625048743,-460.0,0.00016712,2]
[369570553,1751625048753,-878.14,0.00016712,2]
[369570555,1751625048762,-738.68,0.00016712,2]
[369570557,1751625048772,-460.0,0.00016712,2]
[369570559,1751625048781,-285.10983262,0.00016712,2]
[369570561,1751625048792,-197.340509,0.00016712,2]
[369570563,1751625048801,-460.0,0.00016712,2]
[369570565,1751625048810,-460.0,0.00016712,2]
[369570567,1751625048820,-460.0,0.00016712,2]
[369570569,1751625048830,-460.0,0.00016712,2]
[369570571,1751625048840,-460.0,0.00016712,2]
[369570573,1751625048849,-460.0,0.00016712,2]
[369570575,1751625048859,-151.0,0.00016712,2]
[369570577,1751625048868,-151.0,0.00016712,2]
[369570579,1751625048878,-151.0,0.00016712,2]
[369570581,1751625048887,-186.774104,0.00016712,2]
[369570583,1751625048897,-460.0,0.00016712,2]
[369570585,1751625048907,-460.0,0.00016712,2]
[369570587,1751625048917,-460.0,0.00016712,2]
[369570589,1751625048926,-460.0,0.00016712,2]
[369570591,1751625048935,-460.0,0.00016712,2]
[369570593,1751625048945,-460.0,0.00016712,2]
[369570595,1751625048955,-151.0,0.00016712,2]
[369570597,1751625048964,-460.0,0.00016712,2]
[369570599,1751625048974,-151.0,0.00016712,2]
[369570601,1751625048984,-4792.27,0.00016712,2]
[369570603,1751625048994,-152.4628934,0.00016712,2]
[369570605,1751625049003,-905.04,0.00016712,2]
[369570607,1751625049012,-60097.95,0.00016712,2]
[369570609,1751625049021,-671.08,0.00016712,2]
[369570611,1751625049031,-460.0,0.00016712,2]
[369570613,1751625049040,-1262.32,0.00016712,2]
[369570615,1751625049049,-460.0,0.00016712,2]
[369570617,1751625049059,-460.0,0.00016712,2]
[369570619,1751625049069,-742.62,0.00016712,2]
[369570621,1751625049079,-1960.49,0.00016712,2]
[369570623,1751625049089,-460.0,0.00016712,2]
[369570625,1751625049100,-1599.15,0.00016712,2]
[369570627,1751625049110,-1086.28,0.00016712,2]
[369570629,1751625049120,-483.6,0.00016712,2]
[369570631,1751625049130,-460.0,0.00016712,2]
[369570633,1751625049139,-1664.44,0.00016712,2]
[369570635,1751625049149,-3272.53,0.00016712,2]
[369570637,1751625049159,-151.0,0.00016712,2]
[369570639,1751625049168,-151.0,0.00016712,2]
[369570641,1751625049178,-151.0,0.00016712,2]
[369570643,1751625049188,-846.06,0.00016712,2]
[369570645,1751625049198,-151.0,0.00016712,2]
[369570647,1751625049207,-232.582858,0.00016712,2]
[369570649,1751625049217,-2527.35,0.00016712,2]
[369570651,1751625049227,-460.0,0.00016712,2]
[369570652,1751625049236,-151.0,0.00016712,2]
[369570654,1751625049246,-151.0,0.00016712,2]
[369570656,1751625049257,-1122.91,0.00016712,2]
[369570658,1751625049267,-1628.47,0.00016712,2]
[369570673,1751625049398,-819.81,0.00016712,2]
[369570675,1751625049408,-460.0,0.00016712,2]
[369570677,1751625049417,-916.74,0.00016712,2]
[369570679,1751625049427,-460.0,0.00016712,2]
[369570681,1751625049437,-460.0,0.00016712,2]